[Event "*** Titled Tuesday Blitz"]
[Site "Chess.com"]
[Date "2021.02.02"]
[Round "8"]
[White "Nachsueb"]
[Black "Kostukov_Alex"]
[Result "0-1"]
[WhiteElo "2173"]
[BlackElo "2306"]
[TimeControl "180+1"]
[EndTime "11:27:42 PST"]
[Termination "Kostukov_Alex won by resignation"]

1. d4 {[%clk 0:03:00.9]} 1... g6 {[%clk 0:02:59.7]} 2. c4 {[%clk 0:03:00.9]}
2... Bg7 {[%clk 0:03:00.2]} 3. Nc3 {[%clk 0:03:01.4]} 3... d6 {[%clk 0:03:00.9]}
4. e4 {[%clk 0:03:01.6]} 4... e5 {[%clk 0:03:01.5]} 5. Nf3 {[%clk 0:02:58]} 5...
exd4 {[%clk 0:03:00.7]} 6. Nxd4 {[%clk 0:02:57.8]} 6... Nc6 {[%clk 0:03:01.1]}
7. Be3 {[%clk 0:02:57.7]} 7... Nge7 {[%clk 0:03:00.7]} 8. Be2 {[%clk 0:02:57.5]}
8... O-O {[%clk 0:03:00.6]} 9. O-O {[%clk 0:02:57.7]} 9... f5 {[%clk 0:03:00.9]}
10. exf5 {[%clk 0:02:48.1]} 10... Bxd4 {[%clk 0:03:00.5]} 11. Bxd4 {[%clk
0:02:45.8]} 11... Nxf5 {[%clk 0:03:01]} 12. Be3 {[%clk 0:02:29.8]} 12... Nxe3
{[%clk 0:03:01]} 13. fxe3 {[%clk 0:02:30.7]} 13... Rxf1+ {[%clk 0:03:01.1]} 14.
Qxf1 {[%clk 0:02:31.2]} 14... Be6 {[%clk 0:03:01.7]} 15. Nd5 {[%clk 0:02:29.7]}
15... Bxd5 {[%clk 0:03:01.6]} 16. cxd5 {[%clk 0:02:29.6]} 16... Ne5 {[%clk
0:03:02.2]} 17. Qf4 {[%clk 0:02:27.1]} 17... Qe7 {[%clk 0:03:01.3]} 18. Rf1
{[%clk 0:02:25.3]} 18... Rf8 {[%clk 0:03:01.1]} 19. Qxf8+ {[%clk 0:02:25.3]}
19... Qxf8 {[%clk 0:03:01.4]} 20. Rxf8+ {[%clk 0:02:26.2]} 20... Kxf8 {[%clk
0:03:02.3]} 21. Kf2 {[%clk 0:02:25.7]} 21... Ke7 {[%clk 0:03:03.2]} 22. Kg3
{[%clk 0:02:24.2]} 22... Kf6 {[%clk 0:03:03.1]} 23. Kf4 {[%clk 0:02:24.5]} 23...
g5+ {[%clk 0:02:57.3]} 24. Ke4 {[%clk 0:02:24]} 24... Kg6 {[%clk 0:02:50.4]} 25.
g3 {[%clk 0:02:21.8]} 25... Nd7 {[%clk 0:02:49.2]} 26. Kd4 {[%clk 0:02:17]}
26... Ne5 {[%clk 0:02:42.8]} 27. Ke4 {[%clk 0:02:10]} 27... h5 {[%clk
0:02:29.7]} 28. b4 {[%clk 0:02:08.5]} 28... g4 {[%clk 0:02:16.1]} 29. a4 {[%clk
0:02:04.2]} 29... Nf7 {[%clk 0:02:11.9]} 30. Kf4 {[%clk 0:02:03.6]} 30... Kf6
{[%clk 0:02:10.3]} 31. Bd3 {[%clk 0:01:57.3]} 31... Ne5 {[%clk 0:02:05]} 32. Be2
{[%clk 0:01:56.6]} 32... Nd7 {[%clk 0:01:56.4]} 33. Bd3 {[%clk 0:01:54.7]} 33...
Nb6 {[%clk 0:01:55.3]} 34. a5 {[%clk 0:01:42.8]} 34... Nxd5+ {[%clk 0:01:55]}
35. Ke4 {[%clk 0:01:43.1]} 35... Nxb4 {[%clk 0:01:55.2]} 36. Bb5 {[%clk
0:01:43]} 36... c6 {[%clk 0:01:47.3]} 37. Ba4 {[%clk 0:01:41.8]} 37... b5 {[%clk
0:01:44.4]} 38. axb6 {[%clk 0:01:41.2]} 38... axb6 {[%clk 0:01:44.7]} 39. Bd1
{[%clk 0:01:37.1]} 39... c5 {[%clk 0:01:41]} 40. Be2 {[%clk 0:01:35.8]} 40...
d5+ {[%clk 0:01:40.5]} 41. Kf4 {[%clk 0:01:36.2]} 41... c4 {[%clk 0:01:38.3]}
42. e4 {[%clk 0:01:36.6]} 42... c3 {[%clk 0:01:36]} 0-1

[Event "*** Titled Tuesday Blitz"]
[Site "Chess.com"]
[Date "2021.02.02"]
[Round "8"]
[White "AsadliVugar"]
[Black "Yashasd1995"]
[Result "1-0"]
[WhiteElo "2845"]
[BlackElo "2631"]
[TimeControl "180+1"]
[EndTime "11:27:44 PST"]
[Termination "AsadliVugar won by resignation"]

1. e4 {[%clk 0:03:00.9]} 1... d5 {[%clk 0:02:59]} 2. exd5 {[%clk 0:03:01]} 2...
Nf6 {[%clk 0:02:59.6]} 3. Nc3 {[%clk 0:03:01.9]} 3... Nxd5 {[%clk 0:02:59.3]} 4.
Nf3 {[%clk 0:03:01.9]} 4... Nb6 {[%clk 0:03:00.2]} 5. d4 {[%clk 0:03:01.2]} 5...
g6 {[%clk 0:03:00.3]} 6. a4 {[%clk 0:02:58.7]} 6... a5 {[%clk 0:02:59.5]} 7. h3
{[%clk 0:02:59.1]} 7... Bg7 {[%clk 0:02:58.9]} 8. Bd3 {[%clk 0:02:59.7]} 8...
O-O {[%clk 0:02:58.5]} 9. Ne2 {[%clk 0:02:58.5]} 9... Nc6 {[%clk 0:02:54.2]} 10.
c3 {[%clk 0:02:58.4]} 10... e5 {[%clk 0:02:49.3]} 11. dxe5 {[%clk 0:02:58.6]}
11... Nxe5 {[%clk 0:02:50.2]} 12. Nxe5 {[%clk 0:02:59.1]} 12... Bxe5 {[%clk
0:02:50.7]} 13. Qc2 {[%clk 0:02:59.6]} 13... Be6 {[%clk 0:02:23.4]} 14. O-O
{[%clk 0:02:58.8]} 14... Bb3 {[%clk 0:02:14.6]} 15. Qxb3 {[%clk 0:02:58.2]}
15... Qxd3 {[%clk 0:02:15.2]} 16. Nf4 {[%clk 0:02:57.2]} 16... Qc4 {[%clk
0:02:15.2]} 17. Qxc4 {[%clk 0:02:56.8]} 17... Nxc4 {[%clk 0:02:16.1]} 18. Nd3
{[%clk 0:02:57.3]} 18... Bd6 {[%clk 0:02:07.9]} 19. Re1 {[%clk 0:02:55.7]} 19...
Rfe8 {[%clk 0:02:07.7]} 20. Bg5 {[%clk 0:02:56.1]} 20... Kg7 {[%clk 0:01:59.7]}
21. b3 {[%clk 0:02:49.6]} 21... Ne5 {[%clk 0:01:58.3]} 22. Nb2 {[%clk
0:02:48.7]} 22... h6 {[%clk 0:01:29.3]} 23. Be3 {[%clk 0:02:48.9]} 23... Kh7
{[%clk 0:01:11.1]} 24. Re2 {[%clk 0:02:47.8]} 24... Re6 {[%clk 0:01:08.9]} 25.
Rae1 {[%clk 0:02:45.5]} 25... Rae8 {[%clk 0:01:08.1]} 26. Kf1 {[%clk 0:02:46.2]}
26... g5 {[%clk 0:01:06.2]} 27. Bd4 {[%clk 0:02:44.9]} 27... Nc6 {[%clk
0:01:05.1]} 28. Rxe6 {[%clk 0:02:44.6]} 28... Rxe6 {[%clk 0:01:04.4]} 29. Rxe6
{[%clk 0:02:44.7]} 29... fxe6 {[%clk 0:01:05.3]} 30. Be3 {[%clk 0:02:45.1]}
30... Be5 {[%clk 0:01:04.9]} 31. Bd2 {[%clk 0:02:42.9]} 31... Kg6 {[%clk
0:01:02.5]} 32. Nc4 {[%clk 0:02:43.1]} 32... Kf5 {[%clk 0:01:02.7]} 33. Ke2
{[%clk 0:02:43.2]} 33... Ke4 {[%clk 0:01:01.8]} 34. f3+ {[%clk 0:02:41.7]} 34...
Kf5 {[%clk 0:01:00.4]} 35. Be1 {[%clk 0:02:33.9]} 35... Bd6 {[%clk 0:00:55.7]}
36. Bf2 {[%clk 0:02:26.8]} 36... Ne5 {[%clk 0:00:52.5]} 37. Ne3+ {[%clk
0:02:27]} 37... Kf6 {[%clk 0:00:51.4]} 38. Bg3 {[%clk 0:02:26]} 38... Nf7 {[%clk
0:00:49.9]} 39. Be1 {[%clk 0:02:24.6]} 39... b6 {[%clk 0:00:43.9]} 40. Nc4
{[%clk 0:02:25.1]} 40... Bc5 {[%clk 0:00:40.7]} 41. Kd3 {[%clk 0:02:25.3]} 41...
Ne5+ {[%clk 0:00:40.3]} 42. Nxe5 {[%clk 0:02:25.5]} 42... Kxe5 {[%clk
0:00:41.2]} 43. Bg3+ {[%clk 0:02:26]} 43... Kd5 {[%clk 0:00:41.5]} 44. Bxc7
{[%clk 0:02:26.6]} 44... Kc6 {[%clk 0:00:41.5]} 45. Be5 {[%clk 0:02:26.6]} 45...
Kd5 {[%clk 0:00:40.8]} 46. Bd4 {[%clk 0:02:24.5]} 46... Bxd4 {[%clk 0:00:37.3]}
47. cxd4 {[%clk 0:02:25.4]} 47... h5 {[%clk 0:00:36.2]} 48. g3 {[%clk
0:02:24.7]} 48... h4 {[%clk 0:00:35.5]} 49. gxh4 {[%clk 0:02:24.6]} 49... gxh4
{[%clk 0:00:36.4]} 50. f4 {[%clk 0:02:25.1]} 1-0

[Event "*** Titled Tuesday Blitz"]
[Site "Chess.com"]
[Date "2021.02.02"]
[Round "8"]
[White "A-Fier"]
[Black "swisspower96"]
[Result "0-1"]
[WhiteElo "2836"]
[BlackElo "2671"]
[TimeControl "180+1"]
[EndTime "11:27:46 PST"]
[Termination "swisspower96 won by resignation"]

1. d4 {[%clk 0:03:00.9]} 1... Nf6 {[%clk 0:02:59.2]} 2. Bg5 {[%clk 0:02:59.7]}
2... d5 {[%clk 0:02:59.4]} 3. Bxf6 {[%clk 0:02:58.6]} 3... gxf6 {[%clk
0:02:59.2]} 4. c4 {[%clk 0:02:58.3]} 4... dxc4 {[%clk 0:02:58.7]} 5. e3 {[%clk
0:02:58]} 5... c5 {[%clk 0:02:58]} 6. Nc3 {[%clk 0:02:57.2]} 6... cxd4 {[%clk
0:02:54.7]} 7. exd4 {[%clk 0:02:58.1]} 7... Nc6 {[%clk 0:02:46.3]} 8. Nf3 {[%clk
0:02:48.8]} 8... Bg4 {[%clk 0:02:45.6]} 9. Bxc4 {[%clk 0:02:48.7]} 9... Bg7
{[%clk 0:02:31.7]} 10. d5 {[%clk 0:02:42.1]} 10... Ne5 {[%clk 0:02:30.7]} 11.
Bb5+ {[%clk 0:02:31]} 11... Kf8 {[%clk 0:02:30.7]} 12. Be2 {[%clk 0:02:29.4]}
12... Bxf3 {[%clk 0:02:31.1]} 13. Bxf3 {[%clk 0:02:29.3]} 13... f5 {[%clk
0:02:30.9]} 14. O-O {[%clk 0:02:28.3]} 14... a6 {[%clk 0:02:29.7]} 15. Qc2
{[%clk 0:02:26.9]} 15... Qd7 {[%clk 0:02:26.6]} 16. Be2 {[%clk 0:02:25.6]} 16...
h5 {[%clk 0:02:22.5]} 17. f4 {[%clk 0:02:24.5]} 17... Ng4 {[%clk 0:02:20.1]} 18.
Bxg4 {[%clk 0:02:23.3]} 18... hxg4 {[%clk 0:02:18.5]} 19. Rad1 {[%clk
0:02:23.8]} 19... Rc8 {[%clk 0:01:24.3]} 20. Qd3 {[%clk 0:02:18.6]} 20... Rh6
{[%clk 0:01:20.1]} 21. Rd2 {[%clk 0:02:14.7]} 21... Kg8 {[%clk 0:01:04.6]} 22.
Ne2 {[%clk 0:02:12.5]} 22... Rd8 {[%clk 0:00:30.7]} 23. Rfd1 {[%clk 0:02:12.2]}
23... Qc8 {[%clk 0:00:29.3]} 24. Qb3 {[%clk 0:02:10.7]} 24... Rdd6 {[%clk
0:00:25.9]} 25. Ng3 {[%clk 0:02:10.2]} 25... Qc5+ {[%clk 0:00:21.9]} 26. Kh1
{[%clk 0:02:04.4]} 26... Rxh2+ {[%clk 0:00:21.7]} 27. Kxh2 {[%clk 0:02:05.3]}
27... Rh6+ {[%clk 0:00:21.8]} 28. Nh5 {[%clk 0:02:06]} 28... Rxh5+ {[%clk
0:00:22.3]} 29. Kg3 {[%clk 0:02:06.9]} 29... Bf6 {[%clk 0:00:22.2]} 30. Rd4
{[%clk 0:01:48.4]} 30... Bh4+ {[%clk 0:00:21.4]} 0-1

[Event "*** Titled Tuesday Blitz"]
[Site "Chess.com"]
[Date "2021.02.02"]
[Round "8"]
[White "Susik_Gaboyan"]
[Black "Balla_Tamas"]
[Result "0-1"]
[WhiteElo "2313"]
[BlackElo "2489"]
[TimeControl "180+1"]
[EndTime "11:28:02 PST"]
[Termination "Balla_Tamas won on time"]

1. Nf3 {[%clk 0:03:00.2]} 1... g6 {[%clk 0:02:55.9]} 2. g3 {[%clk 0:02:58]} 2...
Bg7 {[%clk 0:02:55.8]} 3. Bg2 {[%clk 0:02:58.4]} 3... c5 {[%clk 0:02:56]} 4. O-O
{[%clk 0:02:59.3]} 4... Nc6 {[%clk 0:02:54.9]} 5. c3 {[%clk 0:02:57]} 5... d5
{[%clk 0:02:50.9]} 6. d4 {[%clk 0:02:56.3]} 6... e6 {[%clk 0:02:49.7]} 7. dxc5
{[%clk 0:02:55.9]} 7... Nge7 {[%clk 0:02:47.5]} 8. Bf4 {[%clk 0:02:52.8]} 8...
O-O {[%clk 0:02:46.6]} 9. Nbd2 {[%clk 0:02:46.9]} 9... e5 {[%clk 0:02:42.3]} 10.
Be3 {[%clk 0:02:43.9]} 10... Nf5 {[%clk 0:02:41.9]} 11. Bg5 {[%clk 0:02:09.6]}
11... f6 {[%clk 0:02:39.6]} 12. Be3 {[%clk 0:01:51.6]} 12... Be6 {[%clk
0:02:24.9]} 13. b4 {[%clk 0:01:31.8]} 13... Qe7 {[%clk 0:02:09.7]} 14. Nb3
{[%clk 0:01:23]} 14... Nxe3 {[%clk 0:02:06.1]} 15. fxe3 {[%clk 0:01:21]} 15...
Bh6 {[%clk 0:02:06.7]} 16. Kf2 {[%clk 0:00:21.8]} 16... Rad8 {[%clk 0:02:04.1]}
17. Qc2 {[%clk 0:00:13.4]} 17... Bf5 {[%clk 0:01:58.8]} 18. Qb2 {[%clk
0:00:10.3]} 18... a5 {[%clk 0:01:52.1]} 19. b5 {[%clk 0:00:09.6]} 19... Nb8
{[%clk 0:01:51.2]} 20. a4 {[%clk 0:00:09.5]} 20... Nd7 {[%clk 0:01:50.6]} 21.
Rfd1 {[%clk 0:00:05.3]} 21... Nxc5 {[%clk 0:01:48.8]} 22. Nxc5 {[%clk
0:00:02.5]} 22... Qxc5 {[%clk 0:01:48.3]} 23. Qd2 {[%clk 0:00:01.1]} 23... Be4
{[%clk 0:01:37]} 0-1

[Event "*** Titled Tuesday Blitz"]
[Site "Chess.com"]
[Date "2021.02.02"]
[Round "8"]
[White "Jadeit90"]
[Black "Skatchkov_V"]
[Result "1-0"]
[WhiteElo "2431"]
[BlackElo "2514"]
[TimeControl "180+1"]
[EndTime "11:28:18 PST"]
[Termination "Jadeit90 won by resignation"]

1. g3 {[%clk 0:03:00.9]} 1... Nf6 {[%clk 0:02:58.6]} 2. Bg2 {[%clk 0:03:00.8]}
2... g6 {[%clk 0:02:59.5]} 3. e4 {[%clk 0:03:01.3]} 3... Bg7 {[%clk 0:03:00.4]}
4. Nc3 {[%clk 0:03:01.3]} 4... d6 {[%clk 0:03:00.4]} 5. d4 {[%clk 0:03:01.6]}
5... O-O {[%clk 0:02:58.6]} 6. Nge2 {[%clk 0:03:01.9]} 6... c5 {[%clk
0:02:57.6]} 7. O-O {[%clk 0:03:02.1]} 7... cxd4 {[%clk 0:02:57.5]} 8. Nxd4
{[%clk 0:03:03]} 8... Nc6 {[%clk 0:02:56]} 9. h3 {[%clk 0:02:57.4]} 9... Bd7
{[%clk 0:02:54.4]} 10. Be3 {[%clk 0:02:57.3]} 10... a6 {[%clk 0:02:54.1]} 11. a4
{[%clk 0:02:56.3]} 11... Rc8 {[%clk 0:02:53.7]} 12. Qe2 {[%clk 0:02:50.4]} 12...
Ne5 {[%clk 0:02:53.8]} 13. Rfd1 {[%clk 0:02:47.1]} 13... Nc4 {[%clk 0:02:53.9]}
14. Bc1 {[%clk 0:02:44.3]} 14... Qa5 {[%clk 0:02:54]} 15. Nb3 {[%clk 0:02:40.6]}
15... Qb4 {[%clk 0:02:45.1]} 16. Bg5 {[%clk 0:02:38]} 16... Nxb2 {[%clk
0:02:35.8]} 17. Bxf6 {[%clk 0:02:38.3]} 17... Nxd1 {[%clk 0:02:36]} 18. Nd5
{[%clk 0:02:36.7]} 18... Qc4 {[%clk 0:02:14.8]} 19. Nxe7+ {[%clk 0:02:20.8]}
19... Kh8 {[%clk 0:02:13.4]} 20. Bxg7+ {[%clk 0:02:20.9]} 20... Kxg7 {[%clk
0:02:14.3]} 21. Qxd1 {[%clk 0:02:21.2]} 21... Rce8 {[%clk 0:02:05.8]} 22. Nd5
{[%clk 0:02:19.7]} 22... Bc6 {[%clk 0:02:04]} 23. Qd4+ {[%clk 0:02:18.2]} 23...
Qxd4 {[%clk 0:02:03.6]} 24. Nxd4 {[%clk 0:02:19.1]} 24... Bxd5 {[%clk
0:02:04.5]} 25. exd5 {[%clk 0:02:19.7]} 25... Rc8 {[%clk 0:02:05.4]} 26. Rb1
{[%clk 0:02:16.4]} 26... Rc4 {[%clk 0:02:05.6]} 27. c3 {[%clk 0:02:16]} 27...
Rb8 {[%clk 0:02:03.5]} 28. Nc6 {[%clk 0:02:14.5]} 28... Re8 {[%clk 0:01:59.4]}
29. Rxb7 {[%clk 0:02:13.1]} 29... Rxc3 {[%clk 0:01:59.7]} 30. Rb2 {[%clk
0:02:02.7]} 30... Ra3 {[%clk 0:01:57.7]} 31. a5 {[%clk 0:02:02.6]} 31... Re1+
{[%clk 0:01:57.9]} 32. Kh2 {[%clk 0:02:02.5]} 32... h5 {[%clk 0:01:55.9]} 33. h4
{[%clk 0:02:02.5]} 33... Rc1 {[%clk 0:01:55.9]} 34. Re2 {[%clk 0:02:01.2]} 34...
Rcc3 {[%clk 0:01:51.1]} 35. Be4 {[%clk 0:02:00.9]} 35... Rc4 {[%clk 0:01:47.8]}
36. Kg2 {[%clk 0:01:58.8]} 36... Rc1 {[%clk 0:01:47.7]} 37. Bf3 {[%clk
0:01:52.5]} 37... Rcc3 {[%clk 0:01:47.1]} 38. Be4 {[%clk 0:01:52.3]} 38... f5
{[%clk 0:01:36.5]} 39. Bc2 {[%clk 0:01:51]} 39... Ra2 {[%clk 0:01:36.2]} 40. Nd4
{[%clk 0:01:49]} 40... Rxa5 {[%clk 0:01:28.4]} 41. Re7+ {[%clk 0:01:46.8]} 41...
Kf8 {[%clk 0:01:21.4]} 42. Rd7 {[%clk 0:01:42.6]} 42... Rxd5 {[%clk 0:01:20.2]}
43. Ne6+ {[%clk 0:01:41.3]} 43... Ke8 {[%clk 0:01:20.7]} 44. Ba4 {[%clk
0:01:40.5]} 44... Ra5 {[%clk 0:01:17.2]} 45. Rc7+ {[%clk 0:01:34.9]} 45... Rxa4
{[%clk 0:01:17.3]} 46. Rxc3 {[%clk 0:01:35]} 46... Ke7 {[%clk 0:01:17.9]} 47.
Nf4 {[%clk 0:01:33.4]} 47... Kf6 {[%clk 0:01:18.1]} 48. Rc6 {[%clk 0:01:32.1]}
1-0

[Event "*** Titled Tuesday Blitz"]
[Site "Chess.com"]
[Date "2021.02.02"]
[Round "8"]
[White "Homino"]
[Black "MoreChessJulia"]
[Result "1/2-1/2"]
[WhiteElo "2290"]
[BlackElo "2162"]
[TimeControl "180+1"]
[EndTime "11:28:28 PST"]
[Termination "Game drawn by repetition"]

1. e4 {[%clk 0:03:00.9]} 1... c5 {[%clk 0:02:58.4]} 2. Nf3 {[%clk 0:03:00.6]}
2... g6 {[%clk 0:02:56.3]} 3. d4 {[%clk 0:02:59.4]} 3... cxd4 {[%clk 0:02:56.4]}
4. Nxd4 {[%clk 0:03:00.3]} 4... Bg7 {[%clk 0:02:56.3]} 5. c4 {[%clk 0:02:59.4]}
5... Nc6 {[%clk 0:02:56.1]} 6. Be3 {[%clk 0:02:59.1]} 6... Nf6 {[%clk 0:02:56]}
7. Nc3 {[%clk 0:02:58.7]} 7... d6 {[%clk 0:02:54.2]} 8. Be2 {[%clk 0:02:58.4]}
8... O-O {[%clk 0:02:54]} 9. O-O {[%clk 0:02:57.9]} 9... Qa5 {[%clk 0:02:51.6]}
10. Nb3 {[%clk 0:02:45.5]} 10... Qc7 {[%clk 0:02:51.2]} 11. Nd5 {[%clk
0:02:41.8]} 11... Qd8 {[%clk 0:02:50.9]} 12. f3 {[%clk 0:02:36.2]} 12... Be6
{[%clk 0:02:48.6]} 13. Rc1 {[%clk 0:02:35.1]} 13... b6 {[%clk 0:02:47.3]} 14.
Qd2 {[%clk 0:02:32]} 14... Ne5 {[%clk 0:02:45]} 15. Nd4 {[%clk 0:02:29.6]} 15...
Bxd5 {[%clk 0:02:42.4]} 16. exd5 {[%clk 0:02:27.3]} 16... Qd7 {[%clk 0:02:40.9]}
17. Bh6 {[%clk 0:02:15.3]} 17... Rfc8 {[%clk 0:02:33.8]} 18. Bxg7 {[%clk
0:02:12.6]} 18... Kxg7 {[%clk 0:02:33.3]} 19. f4 {[%clk 0:01:49.6]} 19... Neg4
{[%clk 0:02:31.9]} 20. h3 {[%clk 0:01:35.9]} 20... Nh6 {[%clk 0:02:29.4]} 21. f5
{[%clk 0:01:33.9]} 21... Nxf5 {[%clk 0:02:18]} 22. Nxf5+ {[%clk 0:01:08.1]}
22... gxf5 {[%clk 0:02:17.4]} 23. Qg5+ {[%clk 0:01:00.2]} 23... Kh8 {[%clk
0:02:17]} 24. Rxf5 {[%clk 0:00:56.6]} 24... Rg8 {[%clk 0:02:15.5]} 25. Qf4
{[%clk 0:00:54.3]} 25... Rg6 {[%clk 0:02:11.7]} 26. Bf3 {[%clk 0:00:35.9]} 26...
Rag8 {[%clk 0:02:10.8]} 27. h4 {[%clk 0:00:33.2]} 27... Qa4 {[%clk 0:01:59.8]}
28. h5 {[%clk 0:00:28]} 28... R6g7 {[%clk 0:01:59.4]} 29. Rxf6 {[%clk 0:00:22]}
29... exf6 {[%clk 0:01:59.2]} 30. Qxf6 {[%clk 0:00:22.9]} 30... h6 {[%clk
0:01:57.2]} 31. Qxh6+ {[%clk 0:00:21.1]} 31... Rh7 {[%clk 0:01:56.8]} 32. Qf6+
{[%clk 0:00:20.1]} 32... Rhg7 {[%clk 0:01:55.8]} 33. h6 {[%clk 0:00:20.1]} 33...
Qxa2 {[%clk 0:01:52]} 34. hxg7+ {[%clk 0:00:19.3]} 34... Rxg7 {[%clk 0:01:52.4]}
35. Qxd6 {[%clk 0:00:17.5]} 35... Qxb2 {[%clk 0:01:52.3]} 36. Qf8+ {[%clk
0:00:16.7]} 36... Kh7 {[%clk 0:01:50.4]} 37. Rf1 {[%clk 0:00:16.4]} 37... Qd4+
{[%clk 0:01:48]} 38. Rf2 {[%clk 0:00:15.9]} 38... Qa1+ {[%clk 0:01:47.6]} 39.
Rf1 {[%clk 0:00:15.1]} 39... Qd4+ {[%clk 0:01:47.3]} 40. Kh2 {[%clk 0:00:14.5]}
40... Qh4+ {[%clk 0:01:46.8]} 41. Kg1 {[%clk 0:00:14.3]} 41... Qd4+ {[%clk
0:01:46.3]} 1/2-1/2

[Event "*** Titled Tuesday Blitz"]
[Site "Chess.com"]
[Date "2021.02.02"]
[Round "8"]
[White "mshuaau0"]
[Black "JiiHart"]
[Result "1-0"]
[WhiteElo "2274"]
[BlackElo "2112"]
[TimeControl "180+1"]
[EndTime "11:28:28 PST"]
[Termination "mshuaau0 won on time"]

1. e4 {[%clk 0:03:00.9]} 1... e5 {[%clk 0:02:59.3]} 2. Nf3 {[%clk 0:03:01.1]}
2... Nc6 {[%clk 0:02:59.4]} 3. d4 {[%clk 0:02:59.7]} 3... exd4 {[%clk
0:02:58.6]} 4. Nxd4 {[%clk 0:03:00.6]} 4... Bc5 {[%clk 0:02:58.7]} 5. Nxc6
{[%clk 0:02:59.6]} 5... Qf6 {[%clk 0:02:56.7]} 6. Qf3 {[%clk 0:02:59.7]} 6...
Qxc6 {[%clk 0:02:56.1]} 7. Nc3 {[%clk 0:02:54.7]} 7... Bb4 {[%clk 0:02:51.7]} 8.
Bd2 {[%clk 0:02:53.9]} 8... Nf6 {[%clk 0:02:49.8]} 9. Bd3 {[%clk 0:02:53]} 9...
d6 {[%clk 0:02:45.1]} 10. h3 {[%clk 0:02:52.5]} 10... O-O {[%clk 0:02:38.4]} 11.
O-O-O {[%clk 0:02:50.1]} 11... Be6 {[%clk 0:01:45.9]} 12. g4 {[%clk 0:02:48.5]}
12... Nd7 {[%clk 0:01:38.6]} 13. Bb5 {[%clk 0:02:20.1]} 13... Qb6 {[%clk
0:01:34]} 14. Bxd7 {[%clk 0:02:18.2]} 14... Bxd7 {[%clk 0:01:25.9]} 15. Nd5
{[%clk 0:02:17.6]} 15... Bxd2+ {[%clk 0:01:24.8]} 16. Rxd2 {[%clk 0:02:18.5]}
16... Qa5 {[%clk 0:01:18.7]} 17. a3 {[%clk 0:01:55.5]} 17... Be6 {[%clk
0:01:14.7]} 18. h4 {[%clk 0:01:54.5]} 18... Rae8 {[%clk 0:01:08.1]} 19. Nf4
{[%clk 0:01:51.5]} 19... b5 {[%clk 0:01:04.3]} 20. h5 {[%clk 0:01:33.1]} 20...
b4 {[%clk 0:01:03.4]} 21. h6 {[%clk 0:01:27.8]} 21... bxa3 {[%clk 0:00:45.2]}
22. bxa3 {[%clk 0:01:25.5]} 22... Rb8 {[%clk 0:00:24.1]} 23. hxg7 {[%clk
0:01:19.3]} 23... Rfe8 {[%clk 0:00:08.9]} 24. Nh5 {[%clk 0:01:18]} 24... Rb1+
{[%clk 0:00:01.5]} 25. Kxb1 {[%clk 0:01:16.9]} 1-0

[Event "*** Titled Tuesday Blitz"]
[Site "Chess.com"]
[Date "2021.02.02"]
[Round "8"]
[White "svilson23"]
[Black "chescomhuynya"]
[Result "0-1"]
[WhiteElo "2287"]
[BlackElo "2519"]
[TimeControl "180+1"]
[EndTime "11:28:32 PST"]
[Termination "chescomhuynya won on time"]

1. d4 {[%clk 0:03:00.9]} 1... Nf6 {[%clk 0:02:59.7]} 2. Bg5 {[%clk 0:03:01.5]}
2... Ne4 {[%clk 0:02:59.8]} 3. Bf4 {[%clk 0:03:01.7]} 3... c5 {[%clk 0:03:00.3]}
4. d5 {[%clk 0:03:02]} 4... Qb6 {[%clk 0:03:00]} 5. Qc1 {[%clk 0:02:53.3]} 5...
e6 {[%clk 0:02:59.6]} 6. f3 {[%clk 0:02:52.4]} 6... Nf6 {[%clk 0:02:59.8]} 7.
dxe6 {[%clk 0:02:45.5]} 7... fxe6 {[%clk 0:02:59.8]} 8. e4 {[%clk 0:02:44.2]}
8... d5 {[%clk 0:03:00]} 9. Nd2 {[%clk 0:02:38.2]} 9... Be7 {[%clk 0:02:58.3]}
10. Nh3 {[%clk 0:02:25.8]} 10... O-O {[%clk 0:02:58]} 11. e5 {[%clk 0:02:20.1]}
11... Nfd7 {[%clk 0:02:55.7]} 12. c4 {[%clk 0:02:18]} 12... Nc6 {[%clk
0:02:52.4]} 13. Be2 {[%clk 0:01:52.6]} 13... Ndxe5 {[%clk 0:02:49.6]} 14. O-O
{[%clk 0:01:53.5]} 14... Nd4 {[%clk 0:02:43.5]} 15. Qd1 {[%clk 0:01:39.3]} 15...
Ng6 {[%clk 0:02:41.9]} 16. Bg3 {[%clk 0:01:20.7]} 16... Qxb2 {[%clk 0:02:41.5]}
17. Rb1 {[%clk 0:01:19.5]} 17... Qxa2 {[%clk 0:02:41.2]} 18. Bd3 {[%clk
0:01:10.7]} 18... b6 {[%clk 0:01:57.1]} 19. Re1 {[%clk 0:01:04.2]} 19... Bf6
{[%clk 0:01:48.2]} 20. Ra1 {[%clk 0:00:42.3]} 20... Qb2 {[%clk 0:01:46.7]} 21.
Rc1 {[%clk 0:00:31.2]} 21... Ba6 {[%clk 0:01:29.2]} 22. Rb1 {[%clk 0:00:12.5]}
22... Qc3 {[%clk 0:01:28.5]} 23. Nf1 {[%clk 0:00:06.9]} 23... Bxc4 {[%clk
0:01:25.3]} 24. Bxg6 {[%clk 0:00:05.7]} 24... hxg6 {[%clk 0:01:24.1]} 25. Re3
{[%clk 0:00:03.8]} 25... Qa5 {[%clk 0:01:20.7]} 26. Ra1 {[%clk 0:00:04.1]} 26...
Qb5 {[%clk 0:01:19.7]} 27. Qc1 {[%clk 0:00:01.4]} 27... Nb3 {[%clk 0:01:18.8]}
0-1